bitfinex/quotes_SOLUSD_20260211
["timestamp","ask_amount","ask_price","bid_price","bid_amount"]
[1770783558819,12.03823795,83.069,83.04,3.44025262]
[1770783559024,1.09953696,83.069,83.04,3.44025262]
[1770783562118,12.03673611,83.079,83.051,0.100911]
[1770783562335,1.09558431,83.078,83.051,0.100911]
[1770783564111,12.03702589,83.077,83.051,0.100911]
[1770783564316,12.03383915,83.099,83.071,0.10427941]
[1770783564619,1.09558431,83.098,83.071,0.10427941]
[1770783565914,1.09558431,83.098,83.06,3.34543788]
[1770783566120,1.09558431,83.098,83.061,0.10647077]
[1770783567140,0.2,83.1,83.071,0.10755603]
[1770783567942,1.09558431,83.099,83.062,0.10860854]
[1770783568139,3.34543788,83.08,83.046,12.04146564]
[1770783568442,1.09558431,83.079,83.05,12.04093293]
[1770783568628,1.09558431,83.079,83.045,12.04152522]
[1770783568941,1.09558431,83.079,83.049,12.0409527]
[1770783569153,1.09558431,83.079,83.041,0.10860854]
[1770783570626,1.09558431,83.086,83.051,0.11068649]
[1770783570938,1.09558431,83.086,83.051,0.11171617]
[1770783571122,1.09558431,83.079,83.041,0.11171617]
[1770783571442,1.09558431,83.079,83.042,0.11171617]
[1770783573138,1.09558431,83.079,83.051,0.11372607]
[1770783574121,1.09558431,83.079,83.044,0.114721]
[1770783574347,1.09558431,83.077,83.031,0.114721]
[1770783574545,1.09558431,83.077,83.041,0.114721]
[1770783575241,1.09558431,83.077,83.042,0.11570523]
[1770783577543,1.09558431,83.089,83.051,0.117624]
[1770783577743,1.09558431,83.088,83.051,0.117624]
[1770783579644,1.09558431,83.086,83.051,0.117624]
[1770783580944,12.03557716,83.087,83.051,0.117624]
[1770783580945,1.09558431,83.079,83.051,0.117624]
[1770783581321,1.09558431,83.079,83.042,0.12136264]
[1770783581546,1.09558431,83.079,83.028,0.12136264]
[1770783581742,1.09558431,83.069,83.031,12.04369452]
[1770783582055,1.09558431,83.069,83.031,12.16595384]
[1770783582249,1.09558431,83.069,83.032,0.12225932]
[1770783584150,12.03833004,83.068,83.032,0.12225932]
[1770783584349,1.09558431,83.059,83.026,12.04429051]
[1770783585248,1.09558431,83.07,83.032,0.12492675]
[1770783585549,1.09558431,83.075,83.041,0.12492675]
[1770783586134,1.09558431,83.075,83.042,0.12581152]
[1770783586349,1.09558431,83.069,83.036,12.04285857]
[1770783586552,1.09558431,83.059,83.03,12.04376407]
[1770783586930,1.09558431,83.059,83.034,12.0432122]
[1770783587139,1.09558431,83.059,83.034,12.16988397]
[1770783588355,12.03977943,83.058,83.034,0.12667177]
[1770783589259,3.34464617,83.07,83.024,12.04470996]
[1770783589260,1.09558431,83.069,83.031,0.12836331]
[1770783589556,1.09558431,83.069,83.032,0.12836331]
[1770783589761,1.09558431,83.069,83.034,0.12920734]
[1770783590135,12.03742691,83.075,83.041,0.13001153]
[1770783590352,12.03742691,83.075,83.042,0.13001153]
[1770783590544,1.09730842,83.069,83.04,12.04235713]
[1770783591548,13.13559402,83.069,83.034,12.17327091]
[1770783591750,1.09730842,83.068,83.035,0.13080746]
[1770783593243,1.09730842,83.066,83.035,0.13080746]
[1770783593439,1.09730842,83.066,83.034,12.04325938]
[1770783594063,1.09730842,83.066,83.035,0.13321243]
[1770783594359,1.09730842,83.075,83.041,0.13321243]
[1770783595357,3.34464617,83.08,83.041,0.13321243]
[1770783595358,1.09730842,83.073,83.041,0.13321243]
[1770783598159,1.09730842,83.071,83.041,0.13321243]
[1770783598365,1.09730842,83.078,83.041,0.13321243]
[1770783598741,1.09730842,83.078,83.051,0.1369929]
[1770783600544,30.08695756,83.093,83.041,42.14785467]
[1770783600545,13.33113205,83.1,83.071,0.13773882]
[1770783600745,1.09730842,83.099,83.071,0.13773882]
[1770783601365,1.09730842,83.079,83.041,42.14785467]
[1770783601566,1.09730842,83.079,83.043,0.1384565]
[1770783601939,1.09730842,83.099,83.051,0.1391718]
[1770783602249,1.09730842,83.097,83.061,0.1391718]
[1770783603056,12.03543231,83.088,83.051,42.2826552]
[1770783603255,1.09730842,83.087,83.051,42.14277973]
[1770783603459,1.09730842,83.087,83.052,0.13987547]
[1770783603743,1.09730842,83.069,83.001,60.2401943]
[1770783603946,1.09730842,83.069,83.03,3.34464617]
[1770783604355,1.09730842,83.069,83.031,0.14055653]
[1770783605064,1.09730842,83.069,83.039,12.04240941]
[1770783605266,1.09730842,83.069,83.037,0.14125145]
[1770783605770,1.09730842,83.069,83.04,3.34464617]
[1770783606269,1.09730842,83.069,83.041,12.1841813]
[1770783607669,1.09730842,83.069,83.042,0.14263027]
[1770783608053,1.09730842,83.093,83.051,0.1432999]
[1770783608249,1.09730842,83.093,83.05,3.34464617]
[1770783608250,1.09730842,83.089,83.05,3.34464617]
[1770783608673,1.09730842,83.079,83.04,3.34464617]
[1770783609472,1.09730842,83.077,83.041,12.04224419]
[1770783610368,1.09730842,83.077,83.041,12.1868818]
[1770783610577,1.09730842,83.077,83.034,50.90313553]
[1770783610779,1.09730842,83.069,83.034,50.90313553]
[1770783611089,1.09730842,83.069,83.038,12.0426695]
[1770783611283,1.09730842,83.067,83.038,12.0426695]
[1770783612475,1.09730842,83.059,83.021,30.11276471]
[1770783612680,1.09730842,83.059,83.026,12.04431711]
[1770783613490,1.09730842,83.058,83.021,12.0451452]
[1770783614585,1.09730842,83.058,83.031,0.14722558]
[1770783615180,1.09730842,83.058,83.033,0.1478551]
[1770783615471,1.09730842,83.058,83.034,38.9]
[1770783615883,1.09730842,83.056,83.034,38.9]
[1770783617608,1.09730842,83.054,83.034,38.9]
[1770783618605,12.03949171,83.06,83.034,38.9]
[1770783618906,13.13680013,83.06,83.034,38.9]
[1770783619109,1.09730842,83.059,83.034,38.9]
[1770783619608,1.09730842,83.059,83.035,12.04311434]
[1770783619909,1.09730842,83.057,83.034,38.9]
[1770783621503,1.09558431,83.055,83.034,38.9]
[1770783623397,1.09558431,83.053,83.034,38.9]
[1770783623593,1.09558431,83.058,83.034,38.9]
[1770783623991,1.09387243,83.039,82.99,4.43274149]
[1770783624195,1.09387243,83.019,82.971,1.08809532]
[1770783624413,5.13032502,83.037,82.968,12.05283832]
[1770783624414,1.09387243,83.009,82.968,12.05283832]
[1770783624627,1.09387243,82.999,82.964,1.08809532]
[1770783624792,1.09387243,82.999,82.957,34.68]
[1770783624993,1.09387243,82.989,82.957,34.68]
[1770783625303,1.09387243,82.989,82.958,1.08809532]
[1770783625606,5.13032502,83.023,82.958,1.08809532]
[1770783625607,1.09387243,83.029,82.981,1.08809532]
[1770783625785,1.09387243,83.029,83.001,1.08809532]
[1770783626614,1.09387243,83.04,83.011,1.08809532]
[1770783627196,1.09387243,83.039,82.993,39.0]
[1770783627397,1.09387243,83.039,82.994,1.08809532]
[1770783627703,1.09387243,83.037,83.0,3.34464617]
[1770783628104,1.09387243,83.037,83.001,1.08809532]
[1770783629391,13.13592157,83.043,83.011,1.08809532]
[1770783629718,1.09387243,83.043,83.013,1.08809532]
[1770783631119,12.03980131,83.058,83.013,1.08809532]
[1770783631416,1.09387243,83.068,83.031,1.08809532]
[1770783631625,12.03847496,83.067,83.041,1.08809532]
[1770783631830,1.09387243,83.071,83.05,3.34464617]
[1770783632418,12.0369845,83.078,83.041,1.08809532]
[1770783632419,3.34464617,83.07,83.041,1.08809532]
[1770783632617,1.09387243,83.069,83.033,1.08809532]
[1770783632823,1.09387243,83.069,83.041,1.08809532]
[1770783633022,1.09387243,83.069,83.033,1.08809532]
[1770783633339,1.09387243,83.059,83.026,12.04436007]
[1770783633538,1.09387243,83.059,83.022,40.10809532]
[1770783633719,3.34464617,83.06,83.022,40.10809532]
[1770783633720,1.09387243,83.057,83.022,40.10809532]
[1770783634034,1.09387243,83.057,83.022,39.02]
[1770783634237,1.09387243,83.057,83.023,12.04485504]
[1770783635815,1.09387243,83.055,83.023,12.04485504]
[1770783637018,1.09387243,83.053,83.023,12.04485504]
[1770783637424,1.09387243,83.053,83.014,1.08809532]
[1770783637629,1.09387243,83.053,83.02,4.43444408]
[1770783637835,1.09387243,83.053,83.02,16.47972893]
[1770783638044,1.09387243,83.053,83.021,1.08809532]
[1770783638647,1.09387243,83.053,83.023,1.08809532]
[1770783639028,12.04064923,83.052,83.025,1.08809532]
[1770783639341,1.09387243,83.069,83.031,1.08809532]
[1770783639535,1.09387243,83.068,83.041,1.08809532]
[1770783639726,1.09387243,83.087,83.041,1.08809532]
[1770783640434,1.09387243,83.087,83.05,3.34634876]
[1770783640635,30.08878782,83.088,83.041,1.08809532]
[1770783640636,3.34634876,83.08,83.041,1.08809532]
[1770783640835,1.09387243,83.079,83.041,1.08809532]
[1770783641838,1.09387243,83.079,83.035,39.06]
[1770783641839,1.09387243,83.069,83.027,12.04422134]
[1770783642030,1.09387243,83.069,83.032,1.08809532]
[1770783642356,1.09387243,83.069,83.03,4.43444408]
[1770783642859,1.09387243,83.069,83.03,16.47826907]
[1770783643424,1.09387243,83.069,83.031,1.08809532]
[1770783645340,1.09387243,83.069,83.03,15.39017375]
[1770783645341,1.09387243,83.039,83.0,3.34634876]
[1770783645525,1.09387243,83.029,82.981,1.08809532]
[1770783645730,1.09387243,83.019,82.981,1.08809532]
[1770783645934,1.09387243,83.029,82.991,1.08809532]
[1770783647457,12.04412969,83.028,83.0,3.34634876]
[1770783647650,1.09387243,83.027,83.0,3.34634876]
[1770783647848,1.09387243,83.027,82.987,39.06]
[1770783647849,1.09387243,83.027,82.99,3.34634876]
[1770783648241,1.09387243,83.027,82.991,12.04945112]
[1770783648442,1.09387243,83.027,82.991,13.13754644]
[1770783648860,1.09387243,83.027,82.991,1.08809532]
[1770783649234,1.09387243,83.025,82.991,1.08809532]
[1770783649757,1.09387243,83.025,82.993,1.08809532]
[1770783650957,12.04380017,83.031,82.993,1.08809532]
[1770783651160,12.04380017,83.031,83.001,1.08629996]
[1770783651545,1.15112171,83.043,83.011,1.08629996]
[1770783652160,1.15112171,83.04,83.011,1.08629996]
[1770783654665,1.15112171,83.04,83.013,1.08629996]
[1770783655361,13.19216843,83.05,83.02,3.34634876]
[1770783656064,1.15112171,83.049,83.02,3.34634876]
[1770783656647,1.15112171,83.047,83.018,1.08629996]
[1770783657144,1.15112171,83.047,83.017,51.10559306]
[1770783657344,1.15112171,83.039,83.009,12.04684131]
[1770783658462,1.15112171,83.039,83.006,39.08]
[1770783658665,1.15112171,83.037,83.006,39.08]
[1770783658848,1.15112171,83.037,83.006,51.12721193]
[1770783659048,1.15112171,83.037,83.006,39.08]
[1770783660148,1.15112171,83.037,83.007,1.08629996]
[1770783660348,44.78,83.056,83.011,1.08629996]
[1770783660349,1.15112171,83.045,83.011,1.08629996]
[1770783660564,3.34636399,83.06,83.007,42.1651186]
[1770783660565,12.04027229,83.055,83.021,12.0451452]
[1770783660767,1.15112171,83.054,83.022,1.08629996]
[1770783661768,1.15112171,83.049,83.018,39.1]
[1770783662160,1.15112171,83.049,83.016,12.0458467]
[1770783662362,1.15112171,83.049,83.013,1.08629996]
[1770783663269,1.15112171,83.049,83.015,1.08629996]
[1770783663460,12.04122916,83.048,83.015,1.08629996]
[1770783663968,1.15112171,83.047,83.015,1.08629996]
[1770783665375,1.15112171,83.047,83.016,12.04587067]
[1770783665568,1.15112171,83.047,83.018,1.08629996]
[1770783666076,12.04106245,83.05,83.018,1.08629996]
[1770783667072,12.04106245,83.05,83.02,1.08629996]
[1770783667780,13.19218416,83.05,83.02,1.08629996]
[1770783667973,13.19218416,83.05,83.021,12.0451452]
[1770783668278,1.15112171,83.049,83.022,1.08629996]
[1770783669658,1.15112171,83.049,83.024,1.08629996]
[1770783670671,12.03977943,83.058,83.024,1.08629996]
[1770783670877,13.19090114,83.058,83.024,1.08629996]
[1770783671078,1.15112171,83.057,83.026,1.08629996]
[1770783671479,1.15112171,83.049,83.025,39.2]
[1770783672465,1.15112171,83.047,83.025,39.2]
[1770783673285,1.15112171,83.047,83.015,12.04590883]
[1770783673979,3.34636399,83.03,82.999,12.04819431]
[1770783674169,3.34636399,83.03,82.999,51.28819431]
[1770783674170,1.15112171,83.029,82.999,51.28819431]
[1770783674559,1.15112171,83.029,83.004,1.08629996]
[1770783674881,1.15112171,83.029,82.999,39.24]
[1770783674882,1.15112171,83.039,83.012,1.08629996]
[1770783675200,1.15112171,83.054,83.021,1.08629996]
[1770783675510,15.38586749,83.06,83.021,1.08629996]
[1770783675663,1.15112171,83.059,83.021,1.08629996]
[1770783675864,1.15112171,83.059,83.023,1.08629996]
[1770783676072,1.15112171,83.059,83.025,1.08629996]
[1770783676566,1.15112171,83.059,83.011,30.11649058]
[1770783676567,1.15112171,83.049,83.017,12.04562372]
[1770783676784,1.15112171,83.039,83.012,39.26]
[1770783677192,1.15112171,83.039,83.02,12.04517768]
[1770783679497,1.15112171,83.039,83.014,12.04616088]
[1770783679799,1.15112171,83.039,83.014,13.13246084]
[1770783680002,1.15112171,83.039,83.015,1.08629996]
[1770783680495,1.0904911,83.037,83.012,39.26]
[1770783682197,1.0904911,83.037,83.013,12.046306]
[1770783682795,1.0904911,83.037,83.013,13.2265181]
[1770783688690,1.1827451,83.029,82.984,30.1261721]
[1770783689000,1.1827451,83.029,82.986,1.08820589]
[1770783689380,1.1827451,83.029,82.987,39.42]
[1770783689586,1.1827451,83.029,82.988,1.08820589]
[1770783690198,1.1827451,83.029,83.001,12.04804761]
[1770783690397,1.1827451,83.029,83.0,1.08820589]
[1770783690599,1.1827451,83.029,83.001,1.08820589]
[1770783692200,12.04412969,83.028,83.002,12.04790246]
[1770783692407,12.04412969,83.028,83.0,39.42]
[1770783692408,1.1827451,83.027,83.0,39.42]
[1770783692607,1.1827451,83.027,83.0,39.46]
[1770783692803,1.1827451,83.027,82.999,1.08820589]
[1770783693007,1.1827451,83.027,82.998,12.04845565]
[1770783694299,30.10741737,83.037,82.995,39.46]
[1770783694300,1.1827451,83.019,82.995,39.46]
[1770783694611,1.1827451,83.009,82.981,39.46]
[1770783694798,1.1827451,82.999,82.96,39.48]
[1770783695000,1.1827451,82.999,82.96,40.56820589]
[1770783696000,1.1827451,82.989,82.96,39.48]
[1770783696201,1.1827451,82.979,82.96,39.48]
[1770783698098,1.1827451,82.977,82.945,1.08820589]
[1770783698299,1.1827451,82.969,82.931,1.08820589]
[1770783698599,1.1827451,82.969,82.94,39.52]
[1770783699214,1.1827451,82.985,82.951,1.08820589]
[1770783700015,1.1827451,83.001,82.971,1.08820589]
[1770783700190,1.1827451,83.001,82.97,3.35227023]
[1770783700191,1.1827451,83.001,82.973,1.08820589]
[1770783700513,1.1827451,82.999,82.973,1.08820589]
[1770783700908,1.1827451,82.999,82.972,51.57225859]
[1770783701315,1.1827451,82.999,82.972,52.66046448]
[1770783701820,1.1827451,82.999,82.972,51.57225859]
[1770783705799,1.1827451,82.997,82.972,39.52]
[1770783706000,1.1827451,82.989,82.962,12.05361945]
[1770783707109,15.40204752,82.99,82.962,12.05361945]
[1770783707110,1.1827451,82.987,82.962,12.05361945]
[1770783708011,1.1827451,82.979,82.958,39.6]
[1770783708212,1.1827451,82.979,82.942,12.05650368]
[1770783708408,1.1827451,82.969,82.942,12.05650368]
[1770783709419,3.35227023,82.97,82.942,12.05650368]
[1770783709420,1.1827451,82.967,82.942,12.05650368]
[1770783710223,1.1827451,82.967,82.94,39.62]
[1770783710622,1.14406855,82.959,82.933,12.05792275]
[1770783711136,3.35227023,82.95,82.93,0.1]
[1770783711430,1.14406855,82.947,82.93,0.1]
[1770783711723,1.14406855,82.939,82.92,0.1]
[1770783714302,1.14406855,82.946,82.92,0.1]
[1770783714501,1.14406855,82.946,82.921,1.10336793]
[1770783714927,1.14406855,82.946,82.92,0.1]
[1770783715406,1.14406855,82.946,82.92,1.20336793]
[1770783716531,1.14406855,82.953,82.92,3.45227023]
[1770783716732,44.34,82.965,82.931,1.10336793]
[1770783716733,13.19748931,82.964,82.931,1.10336793]
[1770783717029,1.14406855,82.964,82.931,1.10336793]
[1770783717531,1.14406855,82.959,82.93,12.05827827]
[1770783717915,1.14406855,82.959,82.932,12.05807167]
[1770783718110,1.14406855,82.959,82.933,1.10336793]
[1770783719428,1.14406855,82.957,82.928,1.10336793]
[1770783719623,1.14406855,82.957,82.934,12.05778088]
[1770783720026,1.14406855,82.957,82.934,13.16114881]
[1770783720237,1.14406855,82.957,82.934,12.05778088]
[1770783720417,1.14406855,82.957,82.927,1.10336793]
[1770783720835,44.34,82.965,82.934,1.10336793]
[1770783721049,1.14406855,82.972,82.941,1.10336793]
[1770783721214,1.14406855,82.972,82.942,13.1599858]
[1770783721415,1.14406855,82.972,82.943,1.10336793]
[1770783721631,1.14406855,82.972,82.92,3.45227023]
[1770783721632,1.14406855,82.959,82.92,0.1]
[1770783721935,1.14406855,82.939,82.92,0.1]
[1770783722134,3.35227023,82.93,82.92,0.1]
[1770783722330,4.49633878,82.93,82.92,0.1]
[1770783722527,3.35227023,82.93,82.92,0.1]
[1770783722732,1.14406855,82.929,82.91,0.1]
[1770783722941,3.35227023,82.93,82.89,30.16038184]
[1770783722942,1.14406855,82.919,82.89,1.10336793]
[1770783723117,1.14406855,82.919,82.82,12.18156697]
[1770783723118,3.35227023,82.92,82.874,12.06643135]
[1770783723322,3.35227023,82.92,82.865,1.10336793]
[1770783723323,3.35227023,82.9,82.865,1.10336793]
[1770783724254,3.35227023,82.9,82.866,12.06767552]
[1770783724418,3.35227023,82.9,82.861,12.06840371]
[1770783724419,12.06287168,82.899,82.861,12.06840371]
[1770783724615,12.06287168,82.899,82.862,1.10336793]
[1770783724920,3.35227023,82.91,82.862,1.10336793]
[1770783725127,1.14406855,82.909,82.864,1.10336793]
[1770783725620,3.35227023,82.9,82.864,1.10336793]
[1770783725823,3.35227023,82.91,82.87,3.35227023]
[1770783726024,1.14406855,82.913,82.871,1.10336793]
[1770783726242,1.14406855,82.909,82.871,1.10336793]
[1770783726426,1.14406855,82.909,82.873,1.10336793]
[1770783727450,1.14406855,82.919,82.881,1.10336793]
[1770783728432,1.14406855,82.919,82.883,1.10336793]
[1770783729224,1.14406855,82.917,82.883,1.10336793]
[1770783729538,1.14406855,82.909,82.883,1.10336793]
[1770783729925,1.14406855,82.916,82.883,1.10336793]
[1770783730128,1.14406855,82.909,82.882,12.06534591]
[1770783730443,1.14406855,82.909,82.881,12.06539196]
[1770783731040,1.14406855,82.909,82.877,1.10336793]
[1770783731237,1.14406855,82.918,82.881,1.10336793]
[1770783731459,1.14406855,82.924,82.891,1.10336793]
[1770783731940,1.14406855,82.919,82.891,1.10336793]
[1770783733954,1.14406855,82.938,82.901,1.10336793]
[1770783734127,1.14406855,82.936,82.901,1.10336793]
[1770783734543,1.14406855,82.947,82.901,1.10336793]
[1770783734851,1.14406855,82.947,82.903,1.10336793]
[1770783735339,1.14406855,82.929,82.897,1.10336793]
[1770783736222,1.14406855,82.929,82.898,12.0630172]
[1770783736827,1.14406855,82.927,82.898,12.0630172]
[1770783738746,1.14406855,82.927,82.898,13.16638513]
[1770783738951,1.14406855,82.934,82.901,1.10336793]
[1770783740562,1.11148043,82.932,82.898,12.0630172]
[1770783740726,1.11148043,82.929,82.898,12.0630172]
[1770783742942,1.11148043,82.929,82.898,13.17044751]
[1770783744559,1.13871747,82.936,82.901,1.08645025]
[1770783744942,1.13871747,82.935,82.902,13.14888541]
[1770783745243,1.13871747,82.935,82.903,1.08645025]
[1770783746451,1.13871747,82.949,82.911,1.08645025]
[1770783746643,1.13871747,82.949,82.902,42.21852307]
[1770783746644,1.13871747,82.949,82.921,1.08645025]
[1770783747043,1.13871747,82.949,82.923,1.08645025]
[1770783747559,1.13871747,82.964,82.931,1.08645025]
[1770783748150,1.13871747,82.964,82.932,39.96]
[1770783748346,1.13871747,82.964,82.933,1.08645025]
[1770783749641,1.13871747,82.964,82.932,39.96]
[1770783749642,1.13871747,82.979,82.941,1.08645025]
[1770783751642,1.13871747,82.979,82.951,1.08645025]
[1770783751947,1.13871747,82.977,82.942,43.28461281]
[1770783752358,1.13871747,82.977,82.942,13.14306812]
[1770783754260,1.13871747,82.975,82.942,13.14306812]
[1770783754458,1.13871747,82.975,82.942,12.05661787]
[1770783754638,1.13871747,82.969,82.942,12.05661787]
[1770783754844,1.13871747,82.969,82.934,12.05766021]
[1770783755045,1.13871747,82.969,82.939,12.05691792]
[1770783755249,1.13871747,82.985,82.951,1.08645025]
[1770783755640,3.35331219,82.97,82.943,12.05647251]
[1770783755840,1.13871747,82.969,82.943,12.05647251]
[1770783756662,1.13871747,82.967,82.932,12.05807167]
[1770783756838,1.13871747,82.967,82.932,13.14452192]
[1770783757044,1.13871747,82.967,82.933,1.08645025]
[1770783757460,1.13871747,82.967,82.932,12.05807167]
[1770783758560,1.13871747,82.965,82.927,12.0587987]
[1770783758761,1.13871747,82.959,82.927,12.0587987]
[1770783760671,1.13871747,82.957,82.921,13.1461215]
[1770783761349,1.13871747,82.957,82.922,1.08645025]
[1770783761666,1.13871747,82.957,82.931,1.08645025]
[1770783763254,1.13871747,82.957,82.932,12.05807167]
[1770783763766,1.13871747,82.957,82.932,13.14452192]
[1770783765061,1.13871747,82.957,82.933,1.08645025]
[1770783765972,3.35356928,82.97,82.933,1.08645025]
[1770783765973,1.13871747,82.961,82.933,1.08645025]
[1770783766173,1.13871747,82.961,82.935,1.08645025]
[1770783768278,1.13871747,82.961,82.937,1.08645025]
[1770783768973,1.13871747,82.961,82.941,1.08645025]
[1770783772079,1.13871747,82.961,82.94,12.05687286]
[1770783773559,1.13871747,82.961,82.936,1.13843639]
[1770783775061,1.13871747,82.961,82.938,1.13843639]
[1770783775589,1.13871747,82.961,82.937,12.05734473]
[1770783775590,1.10497074,82.978,82.941,1.13843639]
[1770783775784,1.10497074,82.969,82.937,42.20070655]
[1770783778866,1.10497074,82.967,82.937,12.05734473]
[1770783779889,1.10497074,82.957,82.929,12.0583692]
[1770783780058,1.10497074,82.939,82.901,1.13843639]
[1770783780265,1.10497074,82.939,82.909,12.06128425]
[1770783780463,1.10497074,82.929,82.904,12.06206056]
[1770783780882,1.10497074,82.929,82.908,12.06145729]
[1770783781084,1.10497074,82.929,82.91,12.06127125]
[1770783781478,1.10497074,82.929,82.887,1.13843639]
[1770783781683,1.10497074,82.919,82.89,12.06408906]
[1770783781910,1.10497074,82.919,82.891,1.13843639]
[1770783783401,1.10497074,82.919,82.893,1.13843639]
[1770783784106,1.10497074,82.937,82.901,1.13843639]
[1770783784288,1.10497074,82.937,82.903,1.13843639]
[1770783785097,1.10497074,82.929,82.902,40.28]
[1770783785902,1.10497074,82.929,82.903,12.06228966]
[1770783786204,1.10497074,82.929,82.902,40.28]
[1770783786393,1.10497074,82.929,82.897,12.06308137]
[1770783786709,1.10497074,82.927,82.897,12.06308137]
[1770783787701,1.10497074,82.927,82.878,30.16449044]
[1770783787702,1.10497074,82.919,82.88,3.35338886]
[1770783787888,1.10497074,82.919,82.882,1.13843639]
[1770783789307,1.10497074,82.917,82.885,12.0648008]
[1770783789510,1.10497074,82.917,82.885,13.20323719]
[1770783789710,1.10497074,82.917,82.886,1.13843639]
[1770783790107,1.10497074,82.929,82.891,1.13843639]
[1770783790313,1.10497074,82.929,82.885,12.0648008]
[1770783790314,1.10497074,82.919,82.885,13.20323719]
[1770783791404,1.10497074,82.919,82.887,12.06461809]
[1770783792208,12.06010757,82.918,82.887,12.06461809]
[1770783792416,1.10497074,82.917,82.887,12.06461809]
[1770783792794,1.10497074,82.909,82.887,12.06461809]
[1770783793311,1.10497074,82.909,82.878,12.06592823]
[1770783794109,1.10497074,82.909,82.878,13.20436462]
[1770783796298,1.10497074,82.909,82.88,12.06563706]
[1770783796501,1.10497074,82.907,82.877,40.34]
[1770783797317,1.10497074,82.907,82.877,41.47843639]
[1770783797714,1.10497074,82.907,82.865,1.13843639]
[1770783797914,1.10497074,82.879,82.85,12.06987183]
[1770783798106,3.35338886,82.89,82.842,1.13843639]
[1770783798107,1.10497074,82.869,82.842,1.13843639]
[1770783798307,1.10497074,82.867,82.832,40.4]
[1770783798502,12.06738427,82.868,82.832,40.4]
[1770783798503,1.10497074,82.859,82.833,12.07248318]
[1770783798705,1.10497074,82.849,82.82,12.07436052]
[1770783799619,1.10497074,82.829,82.806,40.4]
[1770783799817,3.35338886,82.83,82.771,1.13843639]
[1770783799818,1.10497074,82.819,82.771,1.13843639]
[1770783800007,3.35338886,82.83,82.76,60.41549771]
[1770783800008,1.10497074,82.809,82.773,1.13843639]
[1770783800210,1.10497074,82.809,82.773,1.11146979]
[1770783800647,1.17510315,82.808,82.772,40.4]
[1770783800804,1.17510315,82.779,82.74,40.42]
[1770783801007,1.17510315,82.808,82.775,1.11146979]
[1770783801308,1.17510315,82.807,82.775,1.11146979]
[1770783801511,10.02461773,82.8,82.775,1.11146979]
[1770783801811,10.02461773,82.8,82.774,12.08108826]
[1770783801812,1.17510315,82.799,82.774,12.08108826]
[1770783802325,1.17510315,82.799,82.774,13.19255805]
[1770783802702,1.17510315,82.819,82.781,1.11146979]
[1770783803019,1.17510315,82.809,82.781,1.11146979]
[1770783803226,1.17510315,82.799,82.769,40.44]
[1770783803716,1.17510315,82.789,82.769,40.44]
[1770783803915,1.17510315,82.789,82.767,12.08198277]
[1770783803916,1.17510315,82.789,82.719,60.44559746]
[1770783804123,1.17510315,82.789,82.605,593.73432234]
[1770783804124,1.15107793,82.749,82.681,51.3872693]
[1770783804314,10.02461773,82.75,82.648,4.20590096]
[1770783804315,6.31813741,82.671,82.648,4.20590096]
[1770783804701,6.31813741,82.671,82.605,6.30036889]
[1770783804702,20.04923546,82.66,82.581,12.10924148]
[1770783805019,5.13032502,82.644,82.63,4.8942927]
[1770783805227,10.02461773,82.64,82.582,1.19318501]
[1770783805414,10.02461773,82.65,82.582,1.19318501]
[1770783805415,10.02461773,82.63,82.582,1.19318501]
[1770783805612,10.02461773,82.62,82.562,20.04]
[1770783805819,43.76,82.662,82.562,20.04]
[1770783805820,5.36086188,82.669,82.61,10.02461773]
[1770783806119,10.02461773,82.7,82.547,38.24748539]
[1770783806120,1.55077447,82.643,82.597,16.88]
[1770783806323,1.19318501,82.642,82.597,16.88]
[1770783806622,1.19318501,82.642,82.62,10.02461773]
[1770783806799,1.19318501,82.642,82.595,20.54]
[1770783807003,1.19318501,82.642,82.579,36.12]
[1770783807323,1.19318501,82.636,82.579,36.12]
[1770783807527,1.19318501,82.625,82.58,10.02461773]
[1770783807820,10.02461773,82.59,82.53,12.11679489]
[1770783808019,1.19318501,82.597,82.504,23.8]
[1770783808205,1.19318501,82.597,82.413,72.80326621]
[1770783808206,1.19318501,82.579,82.469,30.31420799]
[1770783808402,1.19318501,82.559,82.469,30.31420799]
[1770783808729,1.19318501,82.549,82.485,0.02267327]
[1770783808914,1.55077447,82.558,82.487,0.02267327]
[1770783808915,1.19318501,82.557,82.487,0.02267327]
[1770783809121,1.19318501,82.549,82.51,10.02461773]
[1770783809311,1.19318501,82.539,82.482,0.02267327]
[1770783809625,1.19318501,82.529,82.473,41.26267327]
[1770783809809,10.02461773,82.51,82.451,0.02828727]
[1770783810009,1.19318501,82.519,82.48,10.02461773]
[1770783810209,1.19318501,82.519,82.447,0.02828727]
[1770783810520,1.19318501,82.499,82.446,0.28760317]
[1770783810823,5.13032502,82.523,82.47,10.02461773]
[1770783810824,1.15107793,82.509,82.47,10.02461773]
[1770783811012,1.15107793,82.509,82.45,10.02461773]
[1770783811013,1.15107793,82.509,82.458,0.29336231]
[1770783811210,1.15107793,82.543,82.491,0.29336231]
[1770783811408,1.15107793,82.519,82.48,10.02461773]